fUSD/lending_fUSD_20240628
["ID","MTS","AMOUNT","RATE_DAILY","PERIOD"]
[330524970,1719558709219,-2830.72,0.00019726,2]
[330524971,1719558709239,-500.0,0.00019726,2]
[330524972,1719558709278,-1061.24,0.00019726,2]
[330524973,1719558709295,-2120.89,0.00019726,2]
[330524974,1719558709317,-500.0,0.00019726,2]
[330524975,1719558709339,-5989.98,0.00019726,2]
[330524976,1719558709363,-500.0,0.00019726,2]
[330524977,1719558709376,-3174.64,0.00019726,2]
[330524978,1719558709397,-526.55,0.00019726,2]
[330524979,1719558709413,-9688.19,0.00019726,2]
[330524980,1719558709432,-500.0,0.00019726,2]
[330524981,1719558709454,-840.68,0.00019726,2]
[330524982,1719558709474,-1247.68,0.00019726,2]
[330524983,1719558709495,-3043.55,0.00019726,2]
[330524984,1719558709510,-500.0,0.00019726,2]
[330524985,1719558709528,-500.0,0.00019726,2]
[330524986,1719558709546,-761.47,0.00019726,2]
[330524987,1719558709564,-500.0,0.00019726,2]
[330524988,1719558709582,-886.38,0.00019726,2]
[330524989,1719558709598,-500.0,0.00019726,2]
[330524990,1719558709614,-500.0,0.00019726,2]
[330524991,1719558709630,-500.0,0.00019726,2]
[330524992,1719558709647,-500.0,0.00019726,2]
[330524993,1719558709663,-500.0,0.00019726,2]
[330524994,1719558709679,-500.0,0.00019726,2]
[330524995,1719558709697,-582.31,0.00019726,2]
[330524996,1719558709713,-3675.64,0.00019726,2]
[330524997,1719558709728,-500.0,0.00019726,2]
[330524998,1719558709743,-500.0,0.00019726,2]
[330524999,1719558709759,-8732.17,0.00019726,2]
[330525000,1719558709776,-500.0,0.00019726,2]
[330525001,1719558709791,-1059.73,0.00019726,2]
[330525002,1719558709807,-500.0,0.00019726,2]
[330525003,1719558709822,-500.0,0.00019726,2]
[330525004,1719558709838,-5982.08,0.00019726,2]
[330525005,1719558709854,-500.0,0.00019726,2]
[330525006,1719558709870,-500.0,0.00019726,2]
[330525007,1719558709886,-28717.77,0.00019726,2]
[330525008,1719558709902,-1356.22,0.00019726,2]
[330525009,1719558709917,-7069.38,0.00019726,2]
[330525010,1719558709932,-3225.76,0.00019726,2]
[330525011,1719558709947,-1492.29,0.00019726,2]
[330525012,1719558709962,-3165.32,0.00019726,2]
[330525013,1719558709977,-1221.84,0.00019726,2]
[330525014,1719558709993,-500.0,0.00019726,2]
[330525015,1719558710008,-664.71,0.00019726,2]
[330525016,1719558710023,-1858.57,0.00019726,2]
[330525017,1719558710038,-783.9,0.00019726,2]
[330525018,1719558710053,-500.0,0.00019726,2]
[330525019,1719558710068,-511.36,0.00019726,2]
[330525020,1719558710085,-668.7,0.00019726,2]
[330525021,1719558710102,-15314.84,0.00019726,2]
[330525022,1719558710118,-1406.94,0.00019726,2]
[330525023,1719558710132,-4518.02,0.00019726,2]
[330525024,1719558710147,-3761.95,0.00019726,2]
[330525025,1719558710164,-500.0,0.00019726,2]
[330525026,1719558710180,-509.81,0.00019726,2]
[330525027,1719558710195,-1698.8,0.00019726,2]
[330525028,1719558710210,-500.0,0.00019726,2]
[330525029,1719558710225,-500.0,0.00019726,2]
[330525030,1719558710240,-806.26,0.00019726,2]
[330525031,1719558710256,-500.0,0.00019726,2]
[330525032,1719558710269,-19701.35,0.00019726,2]
[330525033,1719558710284,-1581.02,0.00019726,2]
[330525034,1719558710300,-18198.63,0.00019726,2]
[330525035,1719558710315,-6118.98,0.00019726,2]
[330525036,1719558710330,-6822.38,0.00019726,2]
[330525037,1719558710345,-19034.38,0.00019726,2]
[330525038,1719558710359,-43374.57,0.00019726,2]
[330525039,1719558710375,-12046.15,0.00019726,2]
[330525040,1719558710389,-500.0,0.00019726,2]
[330525041,1719558710405,-901.99,0.00019726,2]
[330525042,1719558710420,-547.36199835,0.00019726,2]
[330525043,1719558710437,-500.0,0.00019726,2]
[330525044,1719558710464,-500.0,0.00019726,2]
[330525045,1719558710492,-1866.33,0.00019726,2]
[330525046,1719558710530,-500.0,0.00019726,2]
[330525047,1719558710546,-500.0,0.00019726,2]
[330525048,1719558710563,-1979.03,0.00019726,2]
[330525049,1719558710578,-1122.13,0.00019726,2]
[330525050,1719558710594,-2880.3,0.00019726,2]
[330525051,1719558710609,-2957.08,0.00019726,2]
[330525052,1719558710625,-1996.34,0.00019726,2]
[330525053,1719558710640,-967.6,0.00019726,2]
[330525054,1719558710656,-13219.7,0.00019726,2]
[330525055,1719558710672,-1470.43,0.00019726,2]
[330525056,1719558710688,-500.0,0.00019726,2]
[330525057,1719558710703,-930.62,0.00019726,2]
[330525058,1719558710717,-500.0,0.00019726,2]
[330525059,1719558710732,-837.01,0.00019726,2]
[330525060,1719558710749,-500.0,0.00019726,2]
[330525061,1719558710765,-725.41,0.00019726,2]
[330525062,1719558710781,-1036.95,0.00019726,2]
[330525063,1719558710797,-2438.96,0.00019726,2]
[330525064,1719558710812,-508.31,0.00019726,2]
[330525065,1719558710827,-11131.72,0.00019726,2]
[330525066,1719558710843,-614.05,0.00019726,2]
[330525067,1719558710859,-500.0,0.00019726,2]
[330525068,1719558710874,-500.0,0.00019726,2]
[330525069,1719558710890,-8501.39,0.00019726,2]
[330525070,1719558710906,-4107.36,0.00019726,2]
[330525071,1719558710920,-695.05,0.00019726,2]
[330525072,1719558710935,-500.0,0.00019726,2]
[330525073,1719558710949,-1198.32,0.00019726,2]
[330525074,1719558710964,-3504.83,0.00019726,2]
[330525075,1719558710979,-1116.82,0.00019726,2]
[330525076,1719558710994,-500.0,0.00019726,2]
[330525077,1719558711009,-3576.98,0.00019726,2]
[330525078,1719558711024,-7408.97,0.00019726,2]
[330525079,1719558711039,-500.0,0.00019726,2]
[330525080,1719558711054,-3893.33,0.00019726,2]
[330525081,1719558711070,-500.0,0.00019726,2]
[330525082,1719558711085,-500.0,0.00019726,2]
[330525083,1719558711104,-500.0,0.00019726,2]
[330525084,1719558711119,-10459.3,0.00019726,2]
[330525085,1719558711134,-500.0,0.00019726,2]
[330525086,1719558711150,-500.0,0.00019726,2]
[330525087,1719558711164,-1129.7,0.00019726,2]
[330525088,1719558711183,-970.09,0.00019726,2]
[330525089,1719558711200,-2771.23,0.00019726,2]
[330525090,1719558711217,-2837.24,0.00019726,2]
[330525091,1719558711232,-500.0,0.00019726,2]
[330525092,1719558711248,-2314.53,0.00019726,2]
[330525093,1719558711262,-250.38314969,0.00019731,2]
[330525094,1719558711278,-351.18950093,0.00019732,2]
[330525095,1719558711294,-250.0,0.00019732,2]
[330525096,1719558711309,-636563.33,0.00019755,6]
[330525097,1719558711325,-34829.93,0.00019755,6]
[330525098,1719558711340,-169.03,0.00019806,2]
[330525099,1719558711355,-600.0,0.00019815,2]
[330525100,1719558711370,-151.0,0.00019867,2]
[330525101,1719558711385,-6187.05557677,0.000199,2]
[330525102,1719558711402,-6187.05557671,0.000199,2]
[330525103,1719558711417,-6187.05557671,0.000199,2]
[330525104,1719558711435,-6187.05557671,0.000199,2]
[330525105,1719558711450,-6187.05557671,0.000199,2]
[330525106,1719558711465,-448.31506774,0.000199,2]
[330525107,1719558711480,-300.0,0.00019905,2]
[330525108,1719558711496,-6187.05557671,0.0001993,2]
[330525109,1719558711510,-212.31,0.00019939,2]
[330525110,1719558711525,-500.0,0.00019976,2]
[330525111,1719558711540,-244.52981216,0.00019976,2]
[330525112,1719558711556,-6187.05557671,0.00019991,2]
[330525113,1719558711571,-4907.94960647,0.00019999,2]
[330525114,1719558711587,-6274.87852259,0.0002,2]
[330525115,1719558711602,-327.02420312,0.0002,2]
[330525116,1719558711618,-581.17261921,0.0002,2]
[330525117,1719558711633,-9869.29557365,0.0002,2]
[330525118,1719558711648,-3000.0,0.0002,2]
[330525119,1719558711664,-3000.0,0.0002,2]
[330525120,1719558711681,-3000.0,0.0002,2]
[330525121,1719558711695,-3000.0,0.0002,2]
[330525122,1719558711711,-3000.0,0.0002,2]
[330525123,1719558711726,-948.77,0.0002,2]
[330525124,1719558711742,-255.79,0.0002,2]
[330525125,1719558711757,-250.0,0.0002,10]
[330525126,1719558711773,-4972.25,0.0002,2]
[330525127,1719558711789,-500.0,0.0002,2]
[330525128,1719558711804,-188.08625707,0.0002,2]
[330525129,1719558711823,-2384.97376412,0.0002,7]
[330525130,1719558711849,-2256.2599654,0.0002,2]
[330525131,1719558711871,-257.0,0.0002,2]
[330525132,1719558711895,-850.0,0.0002,2]
[330525133,1719558711915,-500.0,0.0002,2]
[330525134,1719558711935,-867.21230229,0.0002,2]
[330525135,1719558711955,-155.0,0.0002,2]
[330525136,1719558711974,-447.92404366,0.0002,2]
[330525137,1719558711992,-3575.64271632,0.0002,2]
[330525138,1719558712010,-155.0,0.0002,2]
[330525139,1719558712028,-155.0,0.0002,2]
[330525140,1719558712045,-885.85075113,0.0002,2]
[330525141,1719558712061,-160845.20779739,0.0002,4]
[330525142,1719558712079,-500.0,0.0002,2]
[330525143,1719558712099,-224.5454273,0.0002,2]
[330525144,1719558712116,-500.0,0.0002,2]
[330525145,1719558712133,-500.0,0.0002,2]
[330525146,1719558712553,-500.0,0.0002,2]
[330525147,1719558712563,-500.0,0.0002,2]
[330525148,1719558712572,-500.0,0.0002,2]
[330525149,1719558712581,-500.0,0.0002,2]
[330525150,1719558712592,-500.0,0.0002,2]
[330525151,1719558712603,-500.0,0.0002,2]
[330525152,1719558712612,-500.0,0.0002,2]
[330525153,1719558712621,-500.0,0.0002,2]
[330525154,1719558712630,-1000.0,0.0002,2]
[330525155,1719558712640,-500.0,0.0002,2]
[330525156,1719558712650,-500.0,0.0002,2]
[330525157,1719558712660,-500.0,0.0002,2]
[330525158,1719558712669,-500.0,0.0002,2]
[330525159,1719558712678,-500.0,0.0002,2]
[330525160,1719558712687,-184.70059806,0.0002,2]
[330525161,1719558712696,-500.0,0.0002,2]
[330525162,1719558712705,-500.0,0.0002,2]
[330525163,1719558712715,-500.0,0.0002,2]
[330525164,1719558712724,-500.0,0.0002,2]
[330525165,1719558712734,-500.0,0.0002,2]
[330525166,1719558712743,-500.0,0.0002,2]
[330525167,1719558712752,-500.0,0.0002,2]
[330525168,1719558712763,-500.0,0.0002,2]
[330525169,1719558712773,-500.0,0.0002,2]
[330525170,1719558712783,-500.0,0.0002,2]
[330525171,1719558712792,-500.0,0.0002,2]
[330525172,1719558712802,-500.0,0.0002,2]
[330525173,1719558712811,-500.0,0.0002,2]
[330525174,1719558712821,-500.0,0.0002,2]
[330525175,1719558712831,-500.0,0.0002,2]
[330525176,1719558712840,-500.0,0.0002,2]
[330525177,1719558712849,-500.0,0.0002,2]
[330525178,1719558712859,-500.0,0.0002,2]
[330525179,1719558712868,-500.0,0.0002,2]
[330525180,1719558712879,-500.0,0.0002,2]
[330525181,1719558712888,-500.0,0.0002,2]
[330525182,1719558712898,-500.0,0.0002,2]
[330525183,1719558712907,-500.0,0.0002,2]
[330525184,1719558712918,-500.0,0.0002,2]
[330525185,1719558712928,-500.0,0.0002,2]
[330525186,1719558712937,-500.0,0.0002,2]
[330525187,1719558712947,-500.0,0.0002,2]
[330525188,1719558712956,-500.0,0.0002,2]
[330525189,1719558712965,-500.0,0.0002,2]
[330525190,1719558712974,-500.0,0.0002,2]
[330525191,1719558712983,-500.0,0.0002,2]
[330525192,1719558712992,-500.0,0.0002,2]
[330525193,1719558713001,-178.17435811,0.0002,2]
[330525194,1719558713012,-613.32869173,0.0002,2]
[330525195,1719558713021,-500.0,0.0002,2]
[330525196,1719558713030,-1193.28333926,0.0002,2]
[330525197,1719558713040,-500.0,0.0002,2]
[330525198,1719558713049,-214.17226783,0.0002,2]
[330525199,1719558713059,-500.0,0.0002,2]
[330525200,1719558713068,-500.0,0.0002,2]
[330525201,1719558713077,-886.86,0.0002,2]
[330525202,1719558713090,-500.0,0.0002,2]
[330525203,1719558713099,-500.0,0.0002,2]
[330525204,1719558713109,-500.0,0.0002,2]
[330525205,1719558713118,-500.0,0.0002,2]
[330525206,1719558713127,-1151.71,0.0002,2]
[330525207,1719558713138,-500.0,0.0002,2]
[330525208,1719558713150,-500.0,0.0002,2]
[330525209,1719558713160,-500.0,0.0002,2]
[330525210,1719558713173,-682.81,0.0002,2]
[330525211,1719558713183,-281.44033203,0.0002,2]
[330525212,1719558713193,-2974.6,0.0002,2]
[330525213,1719558713202,-500.0,0.0002,2]
[330525214,1719558713214,-500.0,0.0002,2]
[330525215,1719558713224,-500.0,0.0002,2]
[330525216,1719558713235,-520.33,0.0002,2]
[330525217,1719558713245,-1852.46,0.0002,2]
[330525218,1719558713255,-500.0,0.0002,2]
[330525219,1719558713267,-1092.66,0.0002,2]
[330525220,1719558713277,-500.0,0.0002,2]
[330525221,1719558713287,-500.0,0.0002,2]
[330525222,1719558713296,-500.0,0.0002,2]
[330525223,1719558713306,-500.0,0.0002,2]
[330525224,1719558713315,-743.82,0.0002,2]
[330525225,1719558713324,-517.39690334,0.0002,2]
[330525226,1719558713333,-860.26,0.0002,2]
[330525227,1719558713343,-500.0,0.0002,2]
[330525228,1719558713352,-500.0,0.0002,2]
[330525229,1719558713361,-608.72,0.0002,2]
[330525230,1719558713370,-734.57,0.0002,2]
[330525231,1719558713380,-500.0,0.0002,2]
[330525232,1719558713389,-888.31,0.0002,2]
[330525233,1719558713399,-560.78,0.0002,2]
[330525234,1719558713408,-500.0,0.0002,2]
[330525235,1719558713417,-500.0,0.0002,2]
[330525236,1719558713427,-1659.7,0.0002,2]
[330525237,1719558713436,-2806.65,0.0002,2]
[330525238,1719558713447,-500.0,0.0002,2]
[330525239,1719558713457,-500.0,0.0002,2]
[330525240,1719558713467,-2305.03,0.0002,2]
[330525241,1719558713478,-500.0,0.0002,2]
[330525242,1719558713487,-500.0,0.0002,2]
[330525243,1719558713497,-500.0,0.0002,2]
[330525244,1719558713506,-1208.84,0.0002,2]
[330525245,1719558713515,-1136.16,0.0002,2]
[330525246,1719558713525,-179.59086145,0.0002,2]
[330525247,1719558713534,-737.0,0.0002,2]
[330525248,1719558713544,-500.0,0.0002,2]
[330525249,1719558713553,-500.0,0.0002,2]
[330525250,1719558713565,-500.0,0.0002,2]
[330525251,1719558713575,-2150.69,0.0002,2]
[330525252,1719558713584,-500.0,0.0002,2]
[330525253,1719558713594,-500.0,0.0002,2]
[330525254,1719558713604,-500.0,0.0002,2]
[330525255,1719558713613,-500.0,0.0002,2]
[330525256,1719558713623,-500.0,0.0002,2]
[330525257,1719558713633,-1100.75,0.0002,2]
[330525258,1719558713642,-2202.97,0.0002,2]
[330525259,1719558713652,-532.95,0.0002,2]
[330525260,1719558713661,-928.31,0.0002,2]
[330525261,1719558713671,-500.0,0.0002,2]
[330525262,1719558713680,-528.55,0.0002,2]
[330525263,1719558713691,-500.0,0.0002,2]
[330525264,1719558713700,-717.58,0.0002,2]
[330525265,1719558713710,-500.0,0.0002,2]
[330525266,1719558713720,-500.0,0.0002,2]
[330525267,1719558713729,-973.5,0.0002,2]
[330525268,1719558713739,-1662.73,0.0002,2]
[330525269,1719558713749,-500.0,0.0002,2]
[330525270,1719558713760,-199.62508663,0.0002,2]
[330525271,1719558713770,-500.0,0.0002,2]
[330525272,1719558713780,-500.0,0.0002,2]
[330525273,1719558713791,-500.0,0.0002,2]
[330525274,1719558713803,-500.0,0.0002,2]
[330525275,1719558713813,-612.13757692,0.0002,2]
[330525276,1719558713825,-544.83,0.0002,2]
[330525277,1719558713835,-1021.32,0.0002,2]
[330525278,1719558713845,-803.25,0.0002,2]
[330525279,1719558713854,-500.0,0.0002,2]
[330525280,1719558713864,-500.0,0.0002,2]
[330525281,1719558713875,-500.0,0.0002,2]
[330525282,1719558713887,-500.0,0.0002,2]
[330525283,1719558713897,-500.0,0.0002,2]
[330525284,1719558713906,-500.0,0.0002,2]
[330525285,1719558713915,-933.12,0.0002,2]
[330525286,1719558713926,-1198.98,0.0002,2]
[330525287,1719558713935,-500.0,0.0002,2]
[330525288,1719558713946,-671.66,0.0002,2]
[330525289,1719558713956,-1546.54,0.0002,2]
[330525290,1719558713966,-500.0,0.0002,2]
[330525291,1719558713976,-500.0,0.0002,2]
[330525292,1719558713986,-500.0,0.0002,2]
[330525293,1719558713996,-853.88,0.0002,2]
[330525294,1719558714006,-1991.97,0.0002,2]
[330525295,1719558714015,-500.0,0.0002,2]
[330525296,1719558714025,-500.0,0.0002,2]
[330525297,1719558714035,-500.0,0.0002,2]
[330525298,1719558714044,-500.0,0.0002,2]
[330525299,1719558714054,-500.0,0.0002,2]
[330525300,1719558714063,-878.16,0.0002,2]
[330525301,1719558714072,-500.0,0.0002,2]
[330525302,1719558714082,-633.9078459,0.0002,2]
[330525303,1719558714093,-1108.4,0.0002,2]
[330525304,1719558714105,-1797.61,0.0002,2]
[330525305,1719558714114,-830.15,0.0002,2]
[330525306,1719558714125,-500.0,0.0002,2]
[330525307,1719558714135,-1458.9,0.0002,2]
[330525308,1719558714144,-500.0,0.0002,2]
[330525309,1719558714156,-692.09,0.0002,2]
[330525310,1719558714166,-500.0,0.0002,2]
[330525311,1719558714176,-500.0,0.0002,2]
[330525312,1719558714186,-857.9,0.0002,2]
[330525313,1719558714195,-500.0,0.0002,2]
[330525314,1719558714205,-565.29,0.0002,2]
[330525315,1719558714214,-804.11,0.0002,2]
[330525316,1719558714223,-500.0,0.0002,2]
[330525317,1719558714233,-500.0,0.0002,2]
[330525318,1719558714242,-971.38,0.0002,2]
[330525319,1719558714251,-864.9,0.0002,2]
[330525320,1719558714260,-500.0,0.0002,2]
[330525321,1719558714270,-577.35,0.0002,2]
[330525322,1719558714279,-500.0,0.0002,2]
[330525323,1719558714289,-1590.21,0.0002,2]
[330525324,1719558714298,-500.0,0.0002,2]
[330525325,1719558714308,-2934.36,0.0002,2]
[330525326,1719558714317,-1486.58,0.0002,2]
[330525327,1719558714327,-500.0,0.0002,2]
[330525328,1719558714336,-894.6,0.0002,2]
[330525329,1719558714345,-3334.49,0.0002,2]
[330525330,1719558714355,-1364.86,0.0002,2]
[330525331,1719558714365,-776.63,0.0002,2]
[330525332,1719558714375,-500.0,0.0002,2]
[330525333,1719558714384,-818.59,0.0002,2]
[330525334,1719558714393,-500.0,0.0002,2]
[330525335,1719558714404,-500.0,0.0002,2]
[330525336,1719558714414,-500.0,0.0002,2]
[330525337,1719558714423,-500.0,0.0002,2]
[330525338,1719558714432,-916.78,0.0002,2]
[330525339,1719558714442,-500.0,0.0002,2]
[330525340,1719558714451,-500.0,0.0002,2]
[330525341,1719558714460,-482.42224565,0.0002,2]
[330525342,1719558714469,-500.0,0.0002,2]
[330525343,1719558714478,-500.0,0.0002,2]
[330525344,1719558714487,-500.0,0.0002,2]
[330525345,1719558714496,-500.0,0.0002,2]
[330525346,1719558714506,-500.0,0.0002,2]
[330525347,1719558714519,-1606.4,0.0002,2]
[330525348,1719558714529,-500.0,0.0002,2]
[330525349,1719558714539,-500.0,0.0002,2]
[330525350,1719558714549,-346.30217935,0.0002,2]
[330525351,1719558714558,-302.10534635,0.0002,2]
[330525352,1719558714568,-1523.71,0.0002,2]
[330525353,1719558714577,-500.0,0.0002,2]
[330525354,1719558714587,-500.0,0.0002,2]
[330525355,1719558714596,-2289.07,0.0002,2]
[330525356,1719558714606,-500.0,0.0002,2]
[330525357,1719558714615,-331.48454005,0.0002,2]
[330525358,1719558714625,-2134.84,0.0002,2]
[330525359,1719558714634,-500.0,0.0002,2]
[330525360,1719558714644,-540.94,0.0002,2]
[330525361,1719558714656,-500.0,0.0002,2]
[330525362,1719558714665,-500.0,0.0002,2]
[330525363,1719558714678,-1182.97,0.0002,2]
[330525364,1719558714688,-687.74,0.0002,2]
[330525365,1719558714698,-2844.29,0.0002,2]
[330525366,1719558714707,-1516.21,0.0002,2]
[330525367,1719558714717,-500.0,0.0002,2]
[330525368,1719558714727,-500.0,0.0002,2]
[330525369,1719558714737,-8203.94,0.0002,2]
[330525370,1719558714747,-877.81,0.0002,2]
[330525371,1719558714757,-622.75,0.0002,2]
[330525372,1719558714767,-687.83,0.0002,2]
[330525373,1719558714777,-500.0,0.0002,2]
[330525374,1719558714787,-2943.91,0.0002,2]
[330525375,1719558714797,-500.0,0.0002,2]
[330525376,1719558714807,-500.0,0.0002,2]
[330525377,1719558714817,-1079.86,0.0002,2]
[330525378,1719558714826,-500.0,0.0002,2]
[330525379,1719558714836,-500.0,0.0002,2]
[330525380,1719558714846,-500.0,0.0002,2]
[330525381,1719558714855,-670.57,0.0002,2]
[330525382,1719558714865,-500.0,0.0002,2]
[330525383,1719558714875,-500.0,0.0002,2]
[330525384,1719558714885,-1243.35,0.0002,2]
[330525385,1719558714894,-500.0,0.0002,2]
[330525386,1719558714905,-678.82,0.0002,2]
[330525387,1719558714916,-500.0,0.0002,2]
[330525388,1719558714926,-972.29,0.0002,2]
[330525389,1719558714936,-500.0,0.0002,2]
[330525390,1719558714946,-500.0,0.0002,2]
[330525391,1719558714956,-10921.42,0.0002,2]
[330525392,1719558714966,-983.07,0.0002,2]
[330525393,1719558714976,-1718.14,0.0002,2]
[330525394,1719558714986,-1703.42,0.0002,2]
[330525395,1719558714996,-500.0,0.0002,2]
[330525396,1719558715006,-500.0,0.0002,2]
[330525397,1719558715016,-3108.58,0.0002,2]
[330525398,1719558715027,-788.1,0.0002,2]
[330525399,1719558715037,-1852.59,0.0002,2]
[330525400,1719558715047,-500.0,0.0002,2]
[330525401,1719558715057,-500.0,0.0002,2]
[330525402,1719558715067,-3216.82,0.0002,2]
[330525403,1719558715077,-1484.3,0.0002,2]
[330525404,1719558715088,-500.0,0.0002,2]
[330525405,1719558715101,-500.0,0.0002,2]
[330525406,1719558715111,-500.0,0.0002,2]
[330525407,1719558715122,-500.0,0.0002,2]
[330525408,1719558715133,-500.0,0.0002,2]
[330525409,1719558715144,-500.0,0.0002,2]
[330525410,1719558715155,-500.0,0.0002,2]
[330525411,1719558715165,-638.54,0.0002,2]
[330525412,1719558715175,-557.47,0.0002,2]
[330525413,1719558715189,-602.72,0.0002,2]
[330525414,1719558715199,-766.29,0.0002,2]
[330525415,1719558715209,-1832.43,0.0002,2]
[330525416,1719558715219,-500.0,0.0002,2]
[330525417,1719558715229,-3427.76,0.0002,2]
[330525418,1719558715239,-5215.3,0.0002,2]
[330525419,1719558715250,-790.32,0.0002,2]
[330525420,1719558715259,-800.58,0.0002,2]
[330525421,1719558715268,-1166.53,0.0002,2]
[330525422,1719558715279,-500.0,0.0002,2]
[330525423,1719558715288,-500.0,0.0002,2]
[330525424,1719558715298,-500.0,0.0002,2]
[330525425,1719558715310,-539.42,0.0002,2]
[330525426,1719558715319,-1302.32,0.0002,2]
[330525427,1719558715329,-500.0,0.0002,2]
[330525428,1719558715340,-3384.08,0.0002,2]
[330525429,1719558715350,-989.66,0.0002,2]
[330525430,1719558715360,-1365.76,0.0002,2]
[330525431,1719558715371,-2076.44,0.0002,2]
[330525432,1719558715381,-521.56232813,0.0002,2]
[330525433,1719558715391,-815.26,0.0002,2]
[330525434,1719558715402,-500.0,0.0002,2]
[330525435,1719558715411,-520.33,0.0002,2]
[330525436,1719558715421,-1406.52,0.0002,2]
[330525437,1719558715431,-1219.21,0.0002,2]
[330525438,1719558715442,-500.0,0.0002,2]
[330525439,1719558715452,-3267.35,0.0002,2]
[330525440,1719558715463,-1558.11,0.0002,2]
[330525441,1719558715473,-500.0,0.0002,2]
[330525442,1719558715483,-500.0,0.0002,2]
[330525443,1719558715494,-2141.73,0.0002,2]
[330525444,1719558715504,-500.0,0.0002,2]
[330525445,1719558715515,-500.0,0.0002,2]
[330525446,1719558715525,-500.0,0.0002,2]
[330525447,1719558715535,-1902.0,0.0002,2]
[330525448,1719558715545,-500.0,0.0002,2]
[330525449,1719558715555,-1907.18,0.0002,2]
[330525450,1719558715566,-1934.24,0.0002,2]
[330525451,1719558715576,-500.0,0.0002,2]
[330525452,1719558715586,-1347.33,0.0002,2]
[330525453,1719558715596,-1238.63,0.0002,2]
[330525454,1719558715606,-1650.8,0.0002,2]
[330525455,1719558715616,-911.26,0.0002,2]
[330525456,1719558715626,-500.0,0.0002,2]
[330525457,1719558715636,-804.56,0.0002,2]
[330525458,1719558715646,-500.0,0.0002,2]
[330525459,1719558715658,-593.54,0.0002,2]
[330525460,1719558715668,-500.0,0.0002,2]
[330525461,1719558715679,-1609.09,0.0002,2]
[330525462,1719558715690,-2348.43,0.0002,2]
[330525463,1719558715701,-500.0,0.0002,2]
[330525464,1719558715711,-500.0,0.0002,2]
[330525465,1719558715721,-1742.51,0.0002,2]
[330525466,1719558715732,-500.0,0.0002,2]
[330525467,1719558715743,-710.83,0.0002,2]
[330525468,1719558715755,-1920.03,0.0002,2]
[330525469,1719558715766,-1879.31,0.0002,2]